[Event "*** SCC Grand Prix: Titled Tuesday Blitz"]
[Site "Chess.com"]
[Date "2020.06.02"]
[Round "6"]
[White "Oneofmyturns"]
[Black "mortngabriel"]
[Result "1/2-1/2"]
[WhiteElo "2612"]
[BlackElo "2457"]
[TimeControl "180+1"]
[EndTime "11:10:51 PDT"]
[Termination "Game drawn - insufficient material"]

1. d4 {[%clk 0:03:00.9]} 1... Nf6 {[%clk 0:02:59.7]} 2. c4 {[%clk 0:03:01.4]}
2... e6 {[%clk 0:03:00.3]} 3. Nc3 {[%clk 0:03:01.7]} 3... Bb4 {[%clk 0:03:00.9]}
4. Qc2 {[%clk 0:03:02.2]} 4... O-O {[%clk 0:03:01.3]} 5. e4 {[%clk 0:03:00.9]}
5... d5 {[%clk 0:03:01.2]} 6. e5 {[%clk 0:03:00.8]} 6... Ne4 {[%clk 0:03:01.9]}
7. Bd3 {[%clk 0:03:00.9]} 7... c5 {[%clk 0:03:02.3]} 8. Nf3 {[%clk 0:02:59]}
8... cxd4 {[%clk 0:03:02.7]} 9. Nxd4 {[%clk 0:02:59.9]} 9... Nd7 {[%clk
0:03:03.2]} 10. Bf4 {[%clk 0:02:59.9]} 10... Ndc5 {[%clk 0:02:56.4]} 11. O-O
{[%clk 0:02:59.1]} 11... Bxc3 {[%clk 0:02:54.7]} 12. bxc3 {[%clk 0:03:00]} 12...
Bd7 {[%clk 0:02:53.4]} 13. Be2 {[%clk 0:02:41]} 13... Na4 {[%clk 0:02:47.5]} 14.
cxd5 {[%clk 0:02:36.1]} 14... exd5 {[%clk 0:02:46.6]} 15. f3 {[%clk 0:02:33.1]}
15... Nexc3 {[%clk 0:02:42.5]} 16. Bd3 {[%clk 0:02:32.8]} 16... h6 {[%clk
0:02:33.8]} 17. Kh1 {[%clk 0:02:27.2]} 17... Rc8 {[%clk 0:02:31.7]} 18. Qd2
{[%clk 0:02:24.4]} 18... Qb6 {[%clk 0:01:44.7]} 19. Rae1 {[%clk 0:02:24]} 19...
Rfe8 {[%clk 0:01:35.4]} 20. Bg3 {[%clk 0:01:38.1]} 20... Nb2 {[%clk 0:01:32.4]}
21. Bc2 {[%clk 0:01:08.9]} 21... Nxa2 {[%clk 0:00:48.8]} 22. Rb1 {[%clk
0:01:08.4]} 22... Nc4 {[%clk 0:00:33.4]} 23. Qd3 {[%clk 0:00:48.1]} 23... Qg6
{[%clk 0:00:33.3]} 24. Qxg6 {[%clk 0:00:39.2]} 24... fxg6 {[%clk 0:00:33.4]} 25.
Rxb7 {[%clk 0:00:40.1]} 25... Ne3 {[%clk 0:00:31.2]} 26. Ra1 {[%clk 0:00:34.3]}
26... Nxc2 {[%clk 0:00:30.1]} 27. Nxc2 {[%clk 0:00:35.2]} 27... Rxc2 {[%clk
0:00:29.6]} 28. Rxd7 {[%clk 0:00:35.7]} 28... Nc3 {[%clk 0:00:14]} 29. h3 {[%clk
0:00:31.2]} 29... Ne2 {[%clk 0:00:13.7]} 30. Bf2 {[%clk 0:00:23.6]} 30... Rc1+
{[%clk 0:00:07.4]} 31. Rxc1 {[%clk 0:00:22.9]} 31... Nxc1 {[%clk 0:00:08.3]} 32.
Rxa7 {[%clk 0:00:20]} 32... Rxe5 {[%clk 0:00:07.1]} 33. Bd4 {[%clk 0:00:18.6]}
33... Re1+ {[%clk 0:00:04.7]} 34. Kh2 {[%clk 0:00:19.3]} 34... g5 {[%clk
0:00:02.3]} 35. Rxg7+ {[%clk 0:00:18.6]} 35... Kf8 {[%clk 0:00:03.2]} 36. Rd7
{[%clk 0:00:19.3]} 36... Ne2 {[%clk 0:00:02.7]} 37. Bg7+ {[%clk 0:00:19]} 37...
Ke8 {[%clk 0:00:02.3]} 38. Rxd5 {[%clk 0:00:19.4]} 38... Nf4 {[%clk 0:00:03.2]}
39. Rd2 {[%clk 0:00:12.9]} 39... Kf7 {[%clk 0:00:02.1]} 40. Bxh6 {[%clk
0:00:12.5]} 40... Kg6 {[%clk 0:00:03]} 41. Rd6+ {[%clk 0:00:08.6]} 41... Kh5
{[%clk 0:00:02.2]} 42. Bxg5 {[%clk 0:00:02.9]} 42... Kxg5 {[%clk 0:00:02.3]} 43.
Kg3 {[%clk 0:00:03.4]} 43... Re2 {[%clk 0:00:01.7]} 44. h4+ {[%clk 0:00:02.4]}
44... Kf5 {[%clk 0:00:01.9]} 45. h5 {[%clk 0:00:02.2]} 45... Rxg2+ {[%clk
0:00:02.1]} 46. Kh4 {[%clk 0:00:03.1]} 46... Rh2+ {[%clk 0:00:02.6]} 47. Kg3
{[%clk 0:00:03.6]} 47... Rg2+ {[%clk 0:00:02.9]} 48. Kh4 {[%clk 0:00:04]} 48...
Rh2+ {[%clk 0:00:03.4]} 49. Kg3 {[%clk 0:00:04.6]} 49... Rh3+ {[%clk 0:00:03.8]}
50. Kf2 {[%clk 0:00:05.1]} 50... Nxh5 {[%clk 0:00:03.6]} 51. Rd5+ {[%clk
0:00:04.9]} 51... Kg6 {[%clk 0:00:03.6]} 52. Rd8 {[%clk 0:00:05.8]} 52... Nf6
{[%clk 0:00:03.6]} 53. Ra8 {[%clk 0:00:05.7]} 53... Rh5 {[%clk 0:00:03.1]} 54.
Kg3 {[%clk 0:00:06.6]} 54... Rc5 {[%clk 0:00:02.9]} 55. Ra6 {[%clk 0:00:07]}
55... Kf5 {[%clk 0:00:03.8]} 56. Ra8 {[%clk 0:00:07.2]} 56... Rc4 {[%clk
0:00:04.1]} 57. Ra5+ {[%clk 0:00:07.7]} 57... Kg6 {[%clk 0:00:03.6]} 58. Kf2
{[%clk 0:00:08.2]} 58... Rc1 {[%clk 0:00:04.5]} 59. Ke3 {[%clk 0:00:08.3]} 59...
Re1+ {[%clk 0:00:04.5]} 60. Kf2 {[%clk 0:00:07.9]} 60... Re6 {[%clk 0:00:05.4]}
61. Kg3 {[%clk 0:00:08.3]} 61... Nd7 {[%clk 0:00:05]} 62. Kf2 {[%clk 0:00:08.7]}
62... Kf6 {[%clk 0:00:04.9]} 63. Kg3 {[%clk 0:00:09]} 63... Ne5 {[%clk
0:00:05.4]} 64. Rb5 {[%clk 0:00:08.3]} 64... Nd3 {[%clk 0:00:05.4]} 65. Rd5
{[%clk 0:00:07.6]} 65... Nb4 {[%clk 0:00:04.4]} 66. Rb5 {[%clk 0:00:07.4]} 66...
Nc2 {[%clk 0:00:04.5]} 67. Rh5 {[%clk 0:00:07.1]} 67... Ke7 {[%clk 0:00:03.3]}
68. Kf2 {[%clk 0:00:06.6]} 68... Nd4 {[%clk 0:00:03]} 69. Rd5 {[%clk 0:00:07.1]}
69... Nc6 {[%clk 0:00:02.2]} 70. Rc5 {[%clk 0:00:07.2]} 70... Kf6 {[%clk
0:00:03.1]} 71. Rh5 {[%clk 0:00:07.6]} 71... Ne5 {[%clk 0:00:03.2]} 72. Rh6+
{[%clk 0:00:06.6]} 72... Kf5 {[%clk 0:00:04.1]} 73. Rxe6 {[%clk 0:00:05.5]}
73... Kxe6 {[%clk 0:00:05]} 74. f4 {[%clk 0:00:04.4]} 74... Nd3+ {[%clk
0:00:05.1]} 75. Ke3 {[%clk 0:00:04.3]} 75... Nxf4 {[%clk 0:00:06]} 1/2-1/2

[Event "*** SCC Grand Prix: Titled Tuesday Blitz"]
[Site "Chess.com"]
[Date "2020.06.02"]
[Round "6"]
[White "Munkhzul_Turmunkh"]
[Black "Man-Chuk"]
[Result "0-1"]
[WhiteElo "2589"]
[BlackElo "2770"]
[TimeControl "180+1"]
[EndTime "11:10:55 PDT"]
[Termination "Man-Chuk won on time"]

1. e4 {[%clk 0:03:00.9]} 1... e5 {[%clk 0:02:59.6]} 2. Nf3 {[%clk 0:03:00.6]}
2... Nc6 {[%clk 0:03:00.2]} 3. Bb5 {[%clk 0:03:00.2]} 3... a6 {[%clk 0:02:57.7]}
4. Ba4 {[%clk 0:03:00.2]} 4... Nf6 {[%clk 0:02:54.2]} 5. O-O {[%clk 0:03:00]}
5... Nxe4 {[%clk 0:02:53.4]} 6. d4 {[%clk 0:02:59.1]} 6... b5 {[%clk 0:02:53.7]}
7. Bb3 {[%clk 0:02:59.3]} 7... d5 {[%clk 0:02:54.2]} 8. dxe5 {[%clk 0:02:59.6]}
8... Be6 {[%clk 0:02:54.2]} 9. Nbd2 {[%clk 0:02:59.7]} 9... Nc5 {[%clk
0:02:54.4]} 10. c3 {[%clk 0:02:59.6]} 10... Be7 {[%clk 0:02:53.4]} 11. Bc2
{[%clk 0:02:59.1]} 11... Bg4 {[%clk 0:02:53.2]} 12. Re1 {[%clk 0:02:53.9]} 12...
Ne6 {[%clk 0:02:51.4]} 13. h3 {[%clk 0:02:50.6]} 13... Bh5 {[%clk 0:02:51.4]}
14. Nf1 {[%clk 0:02:49.5]} 14... Bg6 {[%clk 0:02:32.1]} 15. Bb3 {[%clk
0:02:26.9]} 15... d4 {[%clk 0:02:14.7]} 16. Bxe6 {[%clk 0:02:21.8]} 16... fxe6
{[%clk 0:02:15.6]} 17. Nxd4 {[%clk 0:02:21.6]} 17... Nxd4 {[%clk 0:02:13.9]} 18.
Qxd4 {[%clk 0:02:22.5]} 18... Qxd4 {[%clk 0:02:13]} 19. cxd4 {[%clk 0:02:23.4]}
19... O-O-O {[%clk 0:01:44.4]} 20. Be3 {[%clk 0:02:22]} 20... Kb7 {[%clk
0:01:44.5]} 21. Rac1 {[%clk 0:02:14.7]} 21... Bb4 {[%clk 0:01:31.9]} 22. Red1
{[%clk 0:02:13.8]} 22... Ba5 {[%clk 0:01:31.9]} 23. Nd2 {[%clk 0:02:05.9]} 23...
Bxd2 {[%clk 0:01:15.4]} 24. Rxd2 {[%clk 0:02:03.1]} 24... Be4 {[%clk 0:01:15.2]}
25. Rc5 {[%clk 0:02:00.8]} 25... Bd5 {[%clk 0:01:13.5]} 26. b3 {[%clk
0:01:58.7]} 26... c6 {[%clk 0:01:13.4]} 27. Rb2 {[%clk 0:01:55]} 27... a5 {[%clk
0:01:11.1]} 28. Bd2 {[%clk 0:01:51.5]} 28... Ra8 {[%clk 0:01:00.4]} 29. a3
{[%clk 0:01:37.7]} 29... a4 {[%clk 0:00:57.1]} 30. bxa4 {[%clk 0:01:32.1]} 30...
Rxa4 {[%clk 0:00:56.5]} 31. Bb4 {[%clk 0:01:32.6]} 31... Bc4 {[%clk 0:00:51.9]}
32. f4 {[%clk 0:01:27.5]} 32... Kc7 {[%clk 0:00:49.2]} 33. Kf2 {[%clk
0:01:21.4]} 33... h5 {[%clk 0:00:49.1]} 34. Ke3 {[%clk 0:01:20.8]} 34... Raa8
{[%clk 0:00:47.1]} 35. Rf2 {[%clk 0:01:19.1]} 35... g6 {[%clk 0:00:46.5]} 36. g3
{[%clk 0:01:14.5]} 36... Ra4 {[%clk 0:00:42.3]} 37. Rg2 {[%clk 0:01:07.8]} 37...
Rha8 {[%clk 0:00:39.8]} 38. g4 {[%clk 0:00:59.4]} 38... Rxa3+ {[%clk 0:00:39]}
39. Bxa3 {[%clk 0:00:58.4]} 39... Rxa3+ {[%clk 0:00:39.9]} 40. Kf2 {[%clk
0:00:58.1]} 40... Rxh3 {[%clk 0:00:36.6]} 41. gxh5 {[%clk 0:00:57.2]} 41... gxh5
{[%clk 0:00:37.2]} 42. Rg7+ {[%clk 0:00:55.2]} 42... Kb6 {[%clk 0:00:36.7]} 43.
Rg8 {[%clk 0:00:54.4]} 43... Rd3 {[%clk 0:00:26.9]} 44. Rc8 {[%clk 0:00:53.8]}
44... Bd5 {[%clk 0:00:27]} 45. Rb8+ {[%clk 0:00:50.7]} 45... Ka7 {[%clk
0:00:21]} 46. Rh8 {[%clk 0:00:47.4]} 46... Rxd4 {[%clk 0:00:18.4]} 47. Rxh5
{[%clk 0:00:43.6]} 47... Rxf4+ {[%clk 0:00:17.8]} 48. Ke3 {[%clk 0:00:43.8]}
48... Re4+ {[%clk 0:00:18.1]} 49. Kd2 {[%clk 0:00:43.7]} 49... Kb6 {[%clk
0:00:19]} 50. Rc3 {[%clk 0:00:43]} 50... b4 {[%clk 0:00:18.8]} 51. Rg3 {[%clk
0:00:40.4]} 51... c5 {[%clk 0:00:17]} 52. Re3 {[%clk 0:00:34]} 52... Rg4 {[%clk
0:00:14.7]} 53. Rh8 {[%clk 0:00:32.1]} 53... c4 {[%clk 0:00:14.5]} 54. Rc8
{[%clk 0:00:31.9]} 54... Kb5 {[%clk 0:00:13.7]} 55. Rd8 {[%clk 0:00:28.8]} 55...
c3+ {[%clk 0:00:13.5]} 56. Kd3 {[%clk 0:00:26.9]} 56... Bc4+ {[%clk 0:00:13.9]}
57. Kc2 {[%clk 0:00:24.6]} 57... Rg2+ {[%clk 0:00:14.5]} 58. Kc1 {[%clk
0:00:24.9]} 58... Bd5 {[%clk 0:00:08.3]} 59. Rc8 {[%clk 0:00:09.7]} 59... Ka4
{[%clk 0:00:06.3]} 60. Rcxc3 {[%clk 0:00:02.9]} 60... bxc3 {[%clk 0:00:07.2]}
61. Rxc3 {[%clk 0:00:03.7]} 61... Kb4 {[%clk 0:00:07.7]} 62. Rc7 {[%clk
0:00:03.6]} 62... Re2 {[%clk 0:00:06.9]} 63. Kd1 {[%clk 0:00:02.7]} 63... Rxe5
{[%clk 0:00:07.3]} 64. Kd2 {[%clk 0:00:03.4]} 64... Re4 {[%clk 0:00:07.9]} 65.
Kd3 {[%clk 0:00:03.4]} 65... Rh4 {[%clk 0:00:08]} 66. Rd7 {[%clk 0:00:03.1]}
66... Kc5 {[%clk 0:00:08.2]} 67. Re7 {[%clk 0:00:03.1]} 67... Rh3+ {[%clk
0:00:08.2]} 68. Ke2 {[%clk 0:00:03.5]} 68... Kd4 {[%clk 0:00:09.1]} 69. Rd7
{[%clk 0:00:03.4]} 69... Rh2+ {[%clk 0:00:09.3]} 70. Kf1 {[%clk 0:00:03]} 70...
Ke3 {[%clk 0:00:10.2]} 0-1

[Event "*** SCC Grand Prix: Titled Tuesday Blitz"]
[Site "Chess.com"]
[Date "2020.06.02"]
[Round "6"]
[White "ShahMatKanal"]
[Black "Tormoz"]
[Result "1/2-1/2"]
[WhiteElo "2474"]
[BlackElo "2643"]
[TimeControl "180+1"]
[EndTime "11:10:55 PDT"]
[Termination "Game drawn - insufficient material"]

1. c4 {[%clk 0:02:29.5]} 1... e6 {[%clk 0:02:58.5]} 2. Nc3 {[%clk 0:02:28.9]}
2... d5 {[%clk 0:02:58.7]} 3. cxd5 {[%clk 0:02:29]} 3... exd5 {[%clk 0:02:58.6]}
4. d4 {[%clk 0:02:29.2]} 4... Nf6 {[%clk 0:02:58.9]} 5. Bg5 {[%clk 0:02:29.1]}
5... c6 {[%clk 0:02:59.4]} 6. e3 {[%clk 0:02:28.7]} 6... Nbd7 {[%clk 0:02:59.1]}
7. Bd3 {[%clk 0:02:28.1]} 7... Be7 {[%clk 0:02:59.6]} 8. Nge2 {[%clk 0:02:27.3]}
8... Nf8 {[%clk 0:03:00.1]} 9. Qc2 {[%clk 0:02:20.3]} 9... Ne6 {[%clk 0:03:00]}
10. Bh4 {[%clk 0:02:10.4]} 10... g6 {[%clk 0:03:00.2]} 11. O-O {[%clk
0:02:06.8]} 11... O-O {[%clk 0:03:00.4]} 12. Rab1 {[%clk 0:02:03.7]} 12... a5
{[%clk 0:02:57]} 13. a3 {[%clk 0:01:58.1]} 13... b6 {[%clk 0:02:53.8]} 14. Rfc1
{[%clk 0:01:50.5]} 14... Bb7 {[%clk 0:02:53.6]} 15. b4 {[%clk 0:01:48]} 15...
Re8 {[%clk 0:02:42.8]} 16. Bg3 {[%clk 0:01:39.9]} 16... Nh5 {[%clk 0:02:39.9]}
17. Be5 {[%clk 0:01:39.2]} 17... f6 {[%clk 0:02:39.8]} 18. Bg3 {[%clk
0:01:26.8]} 18... Nxg3 {[%clk 0:02:39.6]} 19. hxg3 {[%clk 0:01:24.1]} 19... f5
{[%clk 0:02:39.8]} 20. Nf4 {[%clk 0:01:22.9]} 20... Ng7 {[%clk 0:02:35.1]} 21.
Qb2 {[%clk 0:00:57.7]} 21... b5 {[%clk 0:02:31]} 22. Be2 {[%clk 0:00:53.5]}
22... Bd6 {[%clk 0:02:19]} 23. Nd3 {[%clk 0:00:52.8]} 23... h5 {[%clk 0:02:19]}
24. Ne5 {[%clk 0:00:43.3]} 24... h4 {[%clk 0:01:57.5]} 25. gxh4 {[%clk 0:00:39]}
25... Qxh4 {[%clk 0:01:54.1]} 26. g3 {[%clk 0:00:39.2]} 26... Qh3 {[%clk
0:01:40.2]} 27. Bf1 {[%clk 0:00:37]} 27... Qh6 {[%clk 0:01:36.6]} 28. Ne2 {[%clk
0:00:30.6]} 28... axb4 {[%clk 0:01:33.6]} 29. axb4 {[%clk 0:00:30.1]} 29... Ra6
{[%clk 0:01:00.1]} 30. Nf4 {[%clk 0:00:27.8]} 30... g5 {[%clk 0:00:59.8]} 31.
Nfd3 {[%clk 0:00:27.6]} 31... Ne6 {[%clk 0:00:56.1]} 32. Ra1 {[%clk 0:00:20.5]}
32... Rea8 {[%clk 0:00:55.5]} 33. Rxa6 {[%clk 0:00:20.1]} 33... Rxa6 {[%clk
0:00:55.5]} 34. Ra1 {[%clk 0:00:20.6]} 34... Rxa1 {[%clk 0:00:53.1]} 35. Qxa1
{[%clk 0:00:21.5]} 35... Qf8 {[%clk 0:00:51.5]} 36. Qa7 {[%clk 0:00:20.4]} 36...
Qa8 {[%clk 0:00:48.5]} 37. Qxa8+ {[%clk 0:00:19]} 37... Bxa8 {[%clk 0:00:49.4]}
38. Bh3 {[%clk 0:00:18.7]} 38... g4 {[%clk 0:00:48.8]} 39. Bf1 {[%clk
0:00:16.4]} 39... Bb7 {[%clk 0:00:48.4]} 40. Be2 {[%clk 0:00:13.4]} 40... Kg7
{[%clk 0:00:48.6]} 41. f3 {[%clk 0:00:13]} 41... gxf3 {[%clk 0:00:47.6]} 42.
Bxf3 {[%clk 0:00:13.9]} 42... Kf6 {[%clk 0:00:46]} 43. g4 {[%clk 0:00:13.6]}
43... f4 {[%clk 0:00:37.3]} 44. Kf2 {[%clk 0:00:09]} 44... Bc7 {[%clk
0:00:27.4]} 45. Nd7+ {[%clk 0:00:06.6]} 45... Ke7 {[%clk 0:00:27.1]} 46. N7c5
{[%clk 0:00:06.4]} 46... fxe3+ {[%clk 0:00:25.6]} 47. Kxe3 {[%clk 0:00:06.2]}
47... Bc8 {[%clk 0:00:26.5]} 48. Nxe6 {[%clk 0:00:03.7]} 48... Bxe6 {[%clk
0:00:27.4]} 49. Nc5 {[%clk 0:00:04]} 49... Bf7 {[%clk 0:00:25.6]} 50. Nd3 {[%clk
0:00:03.9]} 50... Kf6 {[%clk 0:00:25.6]} 51. Nc5 {[%clk 0:00:04.1]} 51... Bd6
{[%clk 0:00:25.8]} 52. Nd3 {[%clk 0:00:04.1]} 52... Kg5 {[%clk 0:00:25.7]} 53.
Nc5 {[%clk 0:00:03.6]} 53... Bf4+ {[%clk 0:00:22.2]} 54. Kd3 {[%clk 0:00:02.9]}
54... Kh4 {[%clk 0:00:20.4]} 55. Bd1 {[%clk 0:00:02.5]} 55... Bg6+ {[%clk
0:00:17]} 56. Kc3 {[%clk 0:00:02.4]} 56... Bf7 {[%clk 0:00:16.9]} 57. Nd7 {[%clk
0:00:02.5]} 57... Be6 {[%clk 0:00:14.2]} 58. Ne5 {[%clk 0:00:02.6]} 58... Kg5
{[%clk 0:00:10.2]} 59. Nxc6 {[%clk 0:00:02.5]} 59... Bxg4 {[%clk 0:00:10.5]} 60.
Bxg4 {[%clk 0:00:02.9]} 60... Kxg4 {[%clk 0:00:11.4]} 61. Ne7 {[%clk 0:00:02.9]}
61... Bd6 {[%clk 0:00:11.5]} 62. Nxd5 {[%clk 0:00:03.2]} 62... Kf3 {[%clk
0:00:11.7]} 63. Nb6 {[%clk 0:00:03.2]} 63... Ke4 {[%clk 0:00:11.6]} 64. Nd7
{[%clk 0:00:03.4]} 64... Bg3 {[%clk 0:00:10.6]} 65. Nc5+ {[%clk 0:00:03.5]}
65... Kd5 {[%clk 0:00:11.1]} 66. Nd3 {[%clk 0:00:03.9]} 66... Bd6 {[%clk
0:00:10]} 67. Nc1 {[%clk 0:00:03.6]} 67... Bg3 {[%clk 0:00:09.6]} 68. Nd3 {[%clk
0:00:02.8]} 68... Bh4 {[%clk 0:00:09]} 69. Nc1 {[%clk 0:00:02.4]} 69... Be1+
{[%clk 0:00:08.6]} 70. Kb3 {[%clk 0:00:02.2]} 70... Bd2 {[%clk 0:00:08.3]} 71.
Ne2 {[%clk 0:00:02]} 71... Ke4 {[%clk 0:00:08.5]} 72. Kc2 {[%clk 0:00:02]} 72...
Bxb4 {[%clk 0:00:08.2]} 73. Nc3+ {[%clk 0:00:02.9]} 73... Bxc3 {[%clk
0:00:07.4]} 74. Kxc3 {[%clk 0:00:03.8]} 74... Kd5 {[%clk 0:00:07.7]} 75. Kb4
{[%clk 0:00:04.1]} 75... Kc6 {[%clk 0:00:08]} 76. d5+ {[%clk 0:00:04.2]} 76...
Kb6 {[%clk 0:00:08.3]} 77. d6 {[%clk 0:00:04.1]} 77... Kc6 {[%clk 0:00:08.8]}
78. d7 {[%clk 0:00:04.5]} 78... Kxd7 {[%clk 0:00:09.3]} 79. Kxb5 {[%clk
0:00:05.1]} 1/2-1/2

[Event "*** SCC Grand Prix: Titled Tuesday Blitz"]
[Site "Chess.com"]
[Date "2020.06.02"]
[Round "6"]
[White "OrtizMarcos"]
[Black "Bastiandash"]
[Result "1-0"]
[WhiteElo "2333"]
[BlackElo "2111"]
[TimeControl "180+1"]
[EndTime "11:11:00 PDT"]
[Termination "OrtizMarcos won by resignation"]

1. e4 {[%clk 0:03:00.9]} 1... c5 {[%clk 0:02:58.1]} 2. Nf3 {[%clk 0:03:00.9]}
2... e6 {[%clk 0:02:59]} 3. d4 {[%clk 0:03:01.1]} 3... cxd4 {[%clk 0:02:59.9]}
4. Nxd4 {[%clk 0:03:00.6]} 4... a6 {[%clk 0:02:59.5]} 5. Nc3 {[%clk 0:03:01.1]}
5... b5 {[%clk 0:02:59.5]} 6. Bd3 {[%clk 0:03:01.3]} 6... Qb6 {[%clk 0:02:58.3]}
7. Nf3 {[%clk 0:03:00.8]} 7... Nc6 {[%clk 0:02:53]} 8. a4 {[%clk 0:02:59.8]}
8... b4 {[%clk 0:02:52.9]} 9. a5 {[%clk 0:02:59.8]} 9... Nxa5 {[%clk 0:02:47.3]}
10. Na4 {[%clk 0:02:59.8]} 10... Qc7 {[%clk 0:02:47.2]} 11. Be3 {[%clk
0:02:59.4]} 11... Rb8 {[%clk 0:02:40.4]} 12. Qe2 {[%clk 0:02:44.1]} 12... Nf6
{[%clk 0:02:06.3]} 13. e5 {[%clk 0:02:15.8]} 13... Nd5 {[%clk 0:01:59]} 14. Bd2
{[%clk 0:02:14]} 14... Nc6 {[%clk 0:01:26.9]} 15. O-O {[%clk 0:02:07.5]} 15...
d6 {[%clk 0:01:24.2]} 16. exd6 {[%clk 0:01:41.5]} 16... Bxd6 {[%clk 0:01:25.1]}
17. Rfe1 {[%clk 0:01:18.5]} 17... Nf4 {[%clk 0:01:00.2]} 18. Bxf4 {[%clk
0:01:10.2]} 18... Bxf4 {[%clk 0:01:01.1]} 19. Nc5 {[%clk 0:01:05.9]} 19... a5
{[%clk 0:00:50.6]} 20. Qe4 {[%clk 0:00:52.4]} 20... g6 {[%clk 0:00:42]} 21. g3
{[%clk 0:00:31.3]} 21... Bh6 {[%clk 0:00:27.1]} 22. Qh4 {[%clk 0:00:18.2]} 22...
Bg7 {[%clk 0:00:24.3]} 23. Ne4 {[%clk 0:00:18.7]} 23... Qe7 {[%clk 0:00:17.2]}
24. Qf4 {[%clk 0:00:18]} 24... O-O {[%clk 0:00:13.9]} 25. c3 {[%clk 0:00:15.3]}
25... bxc3 {[%clk 0:00:12.7]} 26. bxc3 {[%clk 0:00:16.2]} 26... e5 {[%clk
0:00:12.7]} 27. Qd2 {[%clk 0:00:16]} 27... Be6 {[%clk 0:00:11.1]} 28. Neg5
{[%clk 0:00:15.3]} 28... Bd5 {[%clk 0:00:09.7]} 29. Be4 {[%clk 0:00:15.6]} 29...
Bxe4 {[%clk 0:00:09.7]} 30. Nxe4 {[%clk 0:00:16.5]} 30... Rfd8 {[%clk
0:00:09.7]} 31. Qc2 {[%clk 0:00:16.9]} 31... h6 {[%clk 0:00:10.1]} 32. h4 {[%clk
0:00:16.5]} 32... f5 {[%clk 0:00:10.2]} 33. Ned2 {[%clk 0:00:16.2]} 33... Kh7
{[%clk 0:00:10.3]} 34. h5 {[%clk 0:00:16.2]} 34... Qf6 {[%clk 0:00:08.5]} 35.
hxg6+ {[%clk 0:00:16.3]} 35... Qxg6 {[%clk 0:00:09.4]} 36. Nh4 {[%clk 0:00:17]}
36... Qf6 {[%clk 0:00:08]} 37. Nc4 {[%clk 0:00:15.9]} 37... e4 {[%clk
0:00:06.8]} 38. Ne3 {[%clk 0:00:15.3]} 38... Ne5 {[%clk 0:00:06.2]} 39. Nexf5
{[%clk 0:00:13.2]} 39... Kh8 {[%clk 0:00:05.1]} 40. Qxe4 {[%clk 0:00:12]} 40...
Re8 {[%clk 0:00:03.3]} 41. Qf4 {[%clk 0:00:10.6]} 41... Ng6 {[%clk 0:00:03.2]}
42. Nxg6+ {[%clk 0:00:10.2]} 42... Qxg6 {[%clk 0:00:04.1]} 43. Nxg7 {[%clk
0:00:10.3]} 43... Qxg7 {[%clk 0:00:04.1]} 44. Rxe8+ {[%clk 0:00:09.6]} 44...
Rxe8 {[%clk 0:00:05]} 45. Rxa5 {[%clk 0:00:09.6]} 45... Re1+ {[%clk 0:00:03.3]}
46. Kg2 {[%clk 0:00:09.9]} 46... Qb7+ {[%clk 0:00:03.4]} 47. f3 {[%clk
0:00:03.6]} 47... Qb2+ {[%clk 0:00:03.2]} 48. Kh3 {[%clk 0:00:04.1]} 48... Rh1+
{[%clk 0:00:03.8]} 49. Kg4 {[%clk 0:00:04]} 49... h5+ {[%clk 0:00:03.8]} 50.
Rxh5+ {[%clk 0:00:02.5]} 50... Rxh5 {[%clk 0:00:03.2]} 51. Kxh5 {[%clk
0:00:03.4]} 51... Qb3 {[%clk 0:00:03.8]} 52. Qe5+ {[%clk 0:00:03.1]} 52... Kh7
{[%clk 0:00:04.1]} 53. Qe7+ {[%clk 0:00:02.8]} 53... Kg8 {[%clk 0:00:04.2]} 54.
Qe8+ {[%clk 0:00:03.3]} 54... Kh7 {[%clk 0:00:04.5]} 55. Qe7+ {[%clk 0:00:03.9]}
55... Kg8 {[%clk 0:00:04.9]} 56. Qe4 {[%clk 0:00:04.6]} 56... Qb2 {[%clk
0:00:02.3]} 57. g4 {[%clk 0:00:05.5]} 57... Qc1 {[%clk 0:00:02.7]} 58. g5 {[%clk
0:00:05.3]} 58... Qh1+ {[%clk 0:00:03.3]} 59. Kg6 {[%clk 0:00:05.9]} 59... Qh7+
{[%clk 0:00:03.6]} 60. Kf6 {[%clk 0:00:05.4]} 60... Qf7+ {[%clk 0:00:04.1]} 61.
Ke5 {[%clk 0:00:05.2]} 61... Qe7+ {[%clk 0:00:04.9]} 62. Kd4 {[%clk 0:00:05.6]}
62... Qxg5 {[%clk 0:00:04.5]} 63. f4 {[%clk 0:00:05.2]} 63... Qg1+ {[%clk
0:00:04.4]} 64. Ke5 {[%clk 0:00:05.2]} 64... Qc1 {[%clk 0:00:03.8]} 65. c4
{[%clk 0:00:04.7]} 65... Qc3+ {[%clk 0:00:03.8]} 66. Qd4 {[%clk 0:00:04.7]}
66... Qe1+ {[%clk 0:00:02.4]} 67. Kf6 {[%clk 0:00:05.1]} 67... Qh4+ {[%clk
0:00:02.7]} 68. Ke5 {[%clk 0:00:04.8]} 68... Qe1+ {[%clk 0:00:02.5]} 69. Kd5
{[%clk 0:00:04.7]} 69... Qc1 {[%clk 0:00:02.1]} 70. c5 {[%clk 0:00:04.8]} 70...
Qa3 {[%clk 0:00:02.3]} 71. c6 {[%clk 0:00:04.8]} 71... Qa5+ {[%clk 0:00:02.9]}
72. Kd6 {[%clk 0:00:05.3]} 72... Qa6 {[%clk 0:00:02.1]} 73. Qd5+ {[%clk
0:00:05.5]} 73... Kf8 {[%clk 0:00:01.9]} 74. Kd7 {[%clk 0:00:06.3]} 74... Qa7+
{[%clk 0:00:01.8]} 75. c7 {[%clk 0:00:06.7]} 75... Qe3 {[%clk 0:00:02.7]} 76.
Qd6+ {[%clk 0:00:06.7]} 76... Kg7 {[%clk 0:00:03.6]} 77. Qe5+ {[%clk 0:00:06.9]}
77... Qxe5 {[%clk 0:00:03.9]} 78. fxe5 {[%clk 0:00:07.8]} 78... Kg6 {[%clk
0:00:04.8]} 79. c8=Q {[%clk 0:00:08.1]} 79... Kf5 {[%clk 0:00:05.7]} 1-0